bitfinex-derivatives/quotes_ETHF0:USTF0_20251008
["timestamp","ask_amount","ask_price","bid_price","bid_amount"]
[1759933106666,0.00172289,4509.5,4509.0,1.4087]
[1759933106864,0.00172289,4509.5,4509.2,0.39906]
[1759933106865,0.46848895,4509.4,4509.2,0.39906]
[1759933107072,0.00172289,4509.5,4509.4,1.41154]
[1759933107258,0.47014144,4509.5,4509.4,1.41154]
[1759933107662,0.47014144,4509.5,4509.4,1.0125]
[1759933107861,3.41006142,4509.5,4509.0,4.00307]
[1759933108061,0.46841855,4509.4,4509.2,1.0125]
[1759933108266,0.46841855,4509.4,4509.3,1.41155]
[1759933108467,0.46831452,4509.4,4509.3,1.41155]
[1759933108665,0.00172289,4509.5,4509.4,1.0125]
[1759933108863,2.8260967,4509.4,4509.1,1.0125]
[1759933109058,2.8260967,4509.4,4509.0,0.3962]
[1759933109263,0.00172289,4509.5,4509.4,1.0125]
[1759933109463,0.4700009,4509.5,4509.1,1.0125]
[1759933109671,3.2251467,4509.3,4509.0,0.3962]
[1759933109863,0.69431459,4509.2,4508.6,1.0125]
[1759933110068,0.39909,4508.9,4508.6,1.0125]
[1759933110269,0.226,4508.8,4508.6,1.0125]
[1759933110466,3.08938434,4508.8,4508.6,1.0125]
[1759933110665,3.08938434,4508.8,4508.5,0.3962]
[1759933110666,0.226,4508.8,4508.5,0.3962]
[1759933110866,0.226,4509.1,4509.0,0.3962]
[1759933111072,0.39909,4509.0,4508.5,0.3962]
[1759933111258,3.35039454,4508.9,4508.5,1.4087]
[1759933111569,0.46840694,4508.8,4508.5,0.79532]
[1759933111766,2.88204341,4508.9,4508.6,1.0125]
[1759933111957,2.87885311,4508.7,4508.5,0.3962]
[1759933112158,3.4338,4508.9,4508.5,0.3962]
[1759933112360,3.34727696,4508.8,4508.5,1.4087]
[1759933112661,0.46842385,4508.7,4508.5,0.3962]
[1759933112970,2.84065327,4508.7,4508.6,1.0125]
[1759933113167,0.46842078,4508.7,4508.6,1.0125]
[1759933113568,3.30907405,4508.7,4508.6,1.0125]
[1759933113770,2.84065327,4508.7,4508.6,1.0125]
[1759933114066,0.3991,4508.7,4508.1,1.01437154]
[1759933114372,3.06660218,4508.6,4508.5,1.4087]
[1759933116373,3.06660218,4508.6,4508.1,0.00187154]
[1759933116374,0.39914,4508.4,4508.1,0.00187154]
[1759933116575,4.43745791,4508.2,4508.1,0.00187154]
[1759933116872,7.78429436,4508.2,4508.1,0.00187154]
[1759933118581,8.01029436,4508.2,4508.1,0.96587154]
[1759933118764,8.01029436,4508.2,4508.1,0.00187154]
[1759933118966,13.01029436,4508.2,4506.9,4.1718]
[1759933119265,13.01029436,4508.2,4506.5,0.3962]
[1759933119266,7.64525791,4507.2,4506.5,1.3602]
[1759933119479,1.09358749,4507.1,4507.0,0.4011]
[1759933119774,3.62119105,4507.1,4507.0,1.3651]
[1759933119973,3.62119105,4507.1,4507.0,1.36725198]
[1759933120470,3.62119105,4507.1,4507.0,0.00215198]
[1759933120972,8.05864896,4507.1,4507.0,0.00215198]
[1759933121163,13.05864896,4507.1,4506.0,0.79554]
[1759933121476,0.39933,4506.2,4506.0,1.3602]
[1759933121774,0.226,4506.1,4506.0,1.3602]
[1759933122073,3.10372322,4506.1,4506.0,0.3962]
[1759933122271,3.10563552,4506.1,4506.0,0.97098987]
[1759933122972,3.10563552,4506.1,4506.0,0.00238987]
[1759933123178,3.10563552,4506.1,4505.0,0.4011]
[1759933123179,0.39939,4505.5,4505.0,1.3697]
[1759933123379,0.226,4505.4,4505.0,0.4011]
[1759933123682,3.55201854,4505.4,4505.1,0.9686]
[1759933123872,0.39941,4505.2,4505.1,0.9686]
[1759933124173,3.05134969,4505.2,4505.1,0.97080549]
[1759933124478,3.05134969,4505.2,4505.1,0.00220549]
[1759933124970,3.05134969,4505.2,4505.1,0.97080549]
[1759933125274,3.05134969,4505.2,4505.1,4.17860549]
[1759933125476,0.0019123,4506.1,4506.0,1.3606]
[1759933126875,2.94551334,4506.1,4506.0,0.392]
[1759933127079,0.0019123,4506.1,4506.0,1.75994]
[1759933127578,0.0019123,4506.1,4505.6,3.2078]
[1759933127579,0.39935,4505.9,4505.6,3.2078]
[1759933127775,0.226,4505.8,4505.7,0.9686]
[1759933127978,0.39941,4505.3,4505.1,0.00220549]
[1759933128283,3.16164112,4505.2,4505.1,0.97080549]
[1759933128674,3.2078,4505.5,4505.2,0.9686]
[1759933128979,2.82510078,4505.2,4505.1,0.00220549]
[1759933129170,4.83686791,4505.3,4505.1,0.00220549]
[1759933129376,4.83686791,4505.3,4504.2,0.9686]
[1759933129377,0.39946,4504.8,4504.2,0.9686]
[1759933129669,3.14304746,4504.7,4504.5,1.3697]
[1759933129878,3.54250746,4504.7,4504.5,0.4011]
[1759933130078,0.39949,4504.3,4504.2,0.9686]
[1759933130268,0.62549,4504.3,4504.1,0.9686]
[1759933130578,3.54253746,4504.3,4504.1,0.97071997]
[1759933130876,3.14304746,4504.3,4504.2,0.9686]
[1759933131176,0.3995,4504.2,4504.1,0.00211997]
[1759933131380,3.14304746,4504.3,4504.2,0.9686]
[1759933131577,3.30429562,4504.2,4504.1,0.00211997]
[1759933131770,0.3995,4504.2,4504.1,0.00211997]
[1759933132175,3.2246855,4504.2,4504.1,0.00211997]
[1759933133680,2.8251855,4504.2,4503.0,0.392]
[1759933133885,0.39952,4504.0,4503.1,0.9686]
[1759933134081,2.8251855,4504.2,4504.0,0.392]
[1759933134274,0.226,4504.1,4504.0,0.392]
[1759933134481,3.08560782,4504.1,4504.0,1.3606]
[1759933134682,3.08560782,4504.1,4504.0,1.36347697]
[1759933134890,0.226,4504.1,4504.0,1.36347697]
[1759933135081,3.14094315,4504.1,4504.0,1.36347697]
[1759933135883,3.14094315,4504.1,4504.0,0.00287697]
[1759933136181,0.39959,4503.3,4503.0,0.392]
[1759933136384,0.226,4503.2,4503.0,1.3606]
[1759933136581,0.226,4503.1,4503.0,1.3606]
[1759933136775,3.2078,4503.7,4503.1,0.9686]
[1759933136976,3.2078,4503.7,4503.6,0.9686]
[1759933137278,3.14636522,4503.7,4503.6,0.9686]
[1759933137784,0.39957,4503.5,4503.1,0.00254693]
[1759933137976,0.39959,4503.3,4503.1,0.00254693]
[1759933138275,3.1196746,4503.2,4503.1,0.00254693]
[1759933138879,6.3274746,4503.2,4503.1,0.00254693]
[1759933140280,0.39961,4503.0,4502.5,1.3606]
[1759933140481,6.3274746,4503.2,4503.1,0.9686]
[1759933140482,2.8936746,4503.2,4503.1,0.9686]
[1759933140682,3.2078,4503.7,4503.6,0.9686]
[1759933140988,6.33967355,4503.7,4503.6,0.9686]
[1759933141181,10.77713146,4503.7,4503.6,0.00165602]
[1759933141588,10.77713146,4503.7,4503.6,0.97025602]
[1759933141981,10.77713146,4503.7,4503.6,0.00165602]
[1759933142383,0.39964,4502.7,4502.5,1.3606]
[1759933142681,0.39964,4502.7,4502.1,3.2078]
[1759933142682,0.39966,4502.5,4502.1,3.2078]
[1759933142982,3.13000554,4502.6,4501.7,0.9686]
[1759933142983,0.39972,4501.8,4501.7,0.9686]
[1759933143286,3.13156575,4501.8,4501.7,0.97054611]
[1759933144186,3.13156575,4501.8,4501.7,0.00194611]
[1759933147283,3.13156575,4501.8,4501.7,0.97054611]
[1759933147782,0.00156021,4501.8,4501.7,5.97054611]
[1759933148311,1.56158224,4504.9,4503.5,0.4037]
[1759933148312,3.2078,4503.6,4503.5,0.4037]
[1759933148488,3.3408,4503.6,4503.0,0.392]
[1759933148786,2.89984957,4503.2,4503.1,1.0329]
[1759933148992,0.226,4503.2,4503.1,1.0329]
[1759933149192,2.8839386,4503.5,4503.4,1.0329]
[1759933149486,0.22821179,4503.5,4503.4,1.0329]
[1759933150191,0.00221179,4503.5,4503.4,1.0329]
[1759933150489,0.00221179,4503.5,4503.4,6.0329]
[1759933150895,0.00221179,4503.5,4503.4,1.0329]
[1759933151888,0.00221179,4503.5,4502.7,0.226]
[1759933151889,0.39962,4502.9,4502.5,1.4249]
[1759933152085,0.226,4502.8,4502.5,1.4249]
[1759933152286,0.39968,4502.2,4501.7,0.00194611]
[1759933152488,0.226,4502.1,4502.0,1.4366]
[1759933152684,0.226,4502.1,4502.0,0.4037]
[1759933153085,0.39971,4501.9,4501.7,0.00194611]
[1759933153285,2.95117074,4502.1,4501.7,0.00194611]
[1759933153490,2.95117074,4502.1,4502.0,1.4366]
[1759933153697,3.17717074,4502.1,4502.0,1.4366]
[1759933153895,0.226,4502.1,4502.0,1.4366]
[1759933154187,2.95189667,4502.1,4502.0,1.4366]
[1759933154395,0.226,4502.1,4502.0,1.4366]
[1759933154588,0.62569,4502.1,4502.0,1.4366]
[1759933154791,3.17789667,4502.1,4501.8,1.0329]
[1759933154989,2.95189667,4502.1,4502.0,1.4366]
[1759933155288,3.60744,4502.7,4502.0,1.4366]
[1759933155289,2.92906672,4502.6,4502.0,1.83629]
[1759933155489,0.226,4502.5,4502.0,0.4037]
[1759933155691,0.39968,4502.3,4502.1,1.0329]
[1759933155994,3.48506798,4502.2,4501.7,3.20974611]
[1759933156199,3.08538798,4502.2,4502.0,0.3997]
[1759933156498,0.226,4502.2,4502.1,1.0329]
[1759933156891,3.09200743,4502.2,4502.1,1.0329]
[1759933157390,3.55998483,4502.2,4502.1,1.0329]
[1759933158094,0.6939774,4502.2,4502.1,1.0329]
[1759933158596,0.226,4502.5,4502.1,1.0329]
[1759933158991,2.82396614,4502.4,4502.3,1.0329]
[1759933159294,3.2921829,4502.4,4502.3,1.0329]
[1759933159493,3.29233928,4502.4,4502.3,1.0329]
[1759933159996,0.39967,4502.3,4502.0,1.4366]
[1759933160199,0.69444026,4502.2,4502.0,1.4366]
[1759933160396,0.4685649,4502.1,4502.0,1.4366]
[1759933160595,0.6945649,4502.1,4502.0,1.4366]
[1759933160899,0.226,4502.1,4502.0,1.4366]
[1759933161601,0.69467948,4502.1,4502.0,1.4366]
[1759933162299,4.40199645,4503.2,4503.0,0.4037]
[1759933162598,3.55278763,4503.1,4503.0,1.4366]
[1759933163600,0.39962,4503.0,4502.5,1.4366]
[1759933163795,0.46873485,4502.9,4502.5,1.4366]
[1759933163995,0.226,4502.8,4502.6,1.0329]
[1759933164198,0.46873485,4502.7,4502.6,1.0329]
[1759933164399,3.40447316,4502.7,4502.6,1.0329]
[1759933164603,7.01191316,4502.7,4502.2,0.39968]
[1759933164795,4.90619276,4502.6,4502.0,1.4366]
[1759933164994,0.39966,4502.4,4502.1,1.0329]
[1759933165197,0.46873485,4502.3,4502.0,0.8034]
[1759933165391,0.62568,4502.2,4502.0,0.4037]
[1759933165696,0.62568,4502.2,4501.7,0.00194611]
[1759933165697,0.39972,4501.8,4501.7,0.00194611]
[1759933165895,0.39977,4501.2,4501.1,0.09997445]
[1759933166097,1.09450485,4501.2,4501.1,0.09997445]
[1759933166298,4.01353832,4501.2,4501.1,0.09997445]
[1759933166899,3.38776832,4501.2,4501.1,1.13526242]
[1759933167205,3.61376832,4501.2,4501.1,1.13526242]
[1759933167599,0.69473485,4501.2,4501.1,1.13526242]
[1759933167795,1.19419645,4502.3,4501.9,0.3997]
[1759933167996,0.69507935,4502.2,4502.1,1.0329]
[1759933168403,3.32378362,4502.2,4502.1,1.0329]
[1759933168593,3.32378362,4502.2,4502.1,6.0329]
[1759933168594,0.46907935,4502.2,4502.1,6.0329]
[1759933168795,0.226,4502.9,4502.8,0.39963]
[1759933169097,0.6950063,4502.9,4502.8,1.0329]
[1759933169900,0.00221179,4503.5,4503.1,1.0329]
[1759933169901,0.226,4503.3,4503.1,1.0329]
[1759933170097,0.46895386,4503.2,4503.1,1.4325]
[1759933170306,0.00221179,4503.5,4503.4,0.39957]
[1759933170502,0.47111966,4503.5,4503.4,1.0329]
[1759933171204,0.3996,4503.2,4503.0,0.4037]
[1759933171408,1.09451787,4503.1,4502.6,3.2078]
[1759933171599,3.08913616,4503.1,4503.0,0.4037]
[1759933171803,3.08913616,4503.1,4503.0,1.4366]
[1759933172002,2.86313616,4503.1,4503.0,1.4366]
[1759933172404,0.226,4503.2,4503.1,1.4325]
[1759933172806,0.69485646,4503.2,4503.1,1.0329]
[1759933174411,0.226,4503.2,4503.1,1.0329]
[1759933175909,0.00221179,4503.5,4503.4,1.43247]
[1759933176105,0.22821179,4503.5,4503.4,1.0329]
[1759933176306,0.69698595,4503.5,4503.4,1.0329]
[1759933176507,0.22821179,4503.5,4503.4,1.0329]
[1759933177018,0.69701317,4503.5,4503.4,1.0329]
[1759933177209,0.22821179,4503.5,4503.4,1.0329]
[1759933177410,0.69705405,4503.5,4503.4,1.0329]
[1759933177611,3.58089707,4503.5,4502.8,1.0329]
[1759933177811,0.39961,4503.1,4502.8,1.0329]
[1759933178013,0.69484226,4503.0,4502.5,3.6115]
[1759933178209,0.46884226,4502.9,4502.6,1.0329]
[1759933178421,0.46884226,4502.8,4502.5,3.6115]
[1759933178731,0.46884226,4502.7,4502.6,0.9966]
[1759933179027,3.41580381,4502.7,4502.6,0.9966]
[1759933179726,2.94696155,4502.7,4502.6,0.9966]
[1759933180126,0.46599747,4502.7,4502.5,4.01115]
[1759933180323,1.19419645,4503.7,4503.0,0.3763]
[1759933180524,1.19419645,4504.4,4503.4,4.2044]
[1759933180827,0.226,4504.6,4503.4,4.4304]
[1759933181029,0.08,4505.2,4505.0,0.3763]
[1759933181229,0.39942,4505.1,4505.0,0.3763]
[1759933181526,2.82322365,4504.8,4504.7,0.9167]
[1759933181723,0.46556478,4504.8,4504.7,0.9167]
[1759933181918,0.69430468,4504.8,4504.7,0.91862429]
[1759933182228,3.56103911,4504.8,4504.7,0.91862429]
[1759933182431,3.33503911,4504.8,4504.7,0.91862429]
[1759933182725,3.09547433,4504.8,4504.7,0.91862429]
[1759933183326,0.0027399,4504.8,4504.7,6.14462429]
[1759933183728,0.083,4505.8,4505.5,0.3916]
[1759933183929,0.46495167,4505.7,4505.5,1.3083]
[1759933184133,2.91731739,4505.7,4505.6,1.31608]
[1759933184336,2.91731739,4505.7,4505.6,0.9167]
[1759933184730,2.91941632,4505.7,4505.6,0.9167]
[1759933186531,0.00209893,4505.7,4505.6,0.9167]
[1759933186734,3.2078,4506.9,4506.5,0.3916]
[1759933186936,0.226,4506.8,4506.6,0.9167]
[1759933187133,2.87917917,4506.6,4506.5,1.7076]
[1759933187340,0.3992,4507.7,4506.5,0.3916]
[1759933187534,0.226,4507.6,4507.1,0.9167]
[1759933187739,2.87917917,4507.4,4507.0,0.3916]
[1759933187937,0.40119402,4507.6,4507.1,0.9167]
[1759933187938,0.00198402,4507.6,4507.1,0.9167]
[1759933188243,0.22798402,4507.6,4507.5,1.3083]
[1759933188538,0.00198402,4507.6,4507.5,1.3083]
[1759933190445,0.00198402,4507.6,4507.0,0.3916]
[1759933190446,0.39922,4507.5,4507.0,0.3916]
[1759933190635,0.62522,4507.4,4507.0,0.3916]
[1759933190940,0.39923,4507.3,4507.0,0.3916]
[1759933191139,3.49736691,4507.4,4507.0,0.3916]
[1759933191341,2.92893166,4507.2,4507.1,0.9167]
[1759933191534,2.92893166,4507.3,4507.0,0.3916]
[1759933191739,0.226,4507.2,4507.1,0.9167]
[1759933192141,3.05452131,4507.2,4507.1,0.9167]
[1759933193838,0.39925,4507.1,4506.6,0.9167]
[1759933194041,3.05452131,4507.2,4506.5,0.3916]
[1759933194344,2.86768397,4507.0,4506.8,0.39927]
[1759933194642,0.226,4506.9,4506.8,1.31597]
[1759933195146,0.00198402,4507.6,4506.8,1.31597]
[1759933195147,0.00198402,4507.6,4507.5,1.3083]
[1759933195340,0.00198402,4507.6,4507.5,4.5161]
[1759933196044,0.00198402,4507.6,4507.5,4.7421]
[1759933196245,0.00198402,4507.6,4507.5,9.7421]
[1759933196442,0.072,4509.1,4508.8,0.9167]
[1759933196745,0.072,4509.1,4509.0,1.3083]
[1759933196940,2.90633768,4509.3,4509.1,0.9167]
[1759933197147,0.226,4509.6,4509.5,0.3916]
[1759933197341,0.00270291,4509.6,4509.5,1.71021333]
[1759933197642,0.00270291,4509.6,4509.5,1.31118333]
[1759933200239,0.226,4511.2,4510.5,0.3916]
[1759933200547,0.226,4511.2,4511.1,0.9167]
[1759933200743,0.226,4511.2,4510.1,0.9167]
[1759933200948,0.226,4511.2,4509.7,3.2078]
[1759933200949,3.2078,4510.9,4510.3,1.31566]
[1759933201146,0.00192165,4510.9,4510.6,0.9167]
[1759933201346,0.00192165,4510.9,4510.5,0.3916]
[1759933201347,0.00192165,4510.9,4510.8,0.9167]
[1759933202345,0.9973,4510.8,4509.6,0.9167]
[1759933202646,0.399,4509.9,4509.5,0.39448333]
[1759933202841,0.226,4509.8,4509.6,0.9167]
[1759933203041,0.226,4509.8,4509.5,0.39448333]
[1759933203042,3.60682,4509.7,4509.5,0.39448333]
[1759933203439,3.60682,4509.7,4509.6,0.9167]
[1759933203645,3.2078,4509.7,4509.6,0.9167]
[1759933203840,11.1357901,4509.7,4509.5,0.00288333]
[1759933204049,5.0,4509.6,4509.0,1.3083]
[1759933204244,6.1357901,4509.7,4509.5,0.3916]
[1759933204446,3.2078,4510.2,4510.0,0.3916]
[1759933204648,3.2078,4510.2,4510.1,0.9167]
[1759933205045,0.226,4510.6,4510.5,0.3916]
[1759933205247,0.226,4510.6,4510.1,0.00185555]
[1759933205248,2.81686218,4510.2,4510.1,0.00185555]
[1759933205450,3.4338,4510.2,4510.1,0.00185555]
[1759933205646,0.99758,4509.6,4508.5,1.3083]
[1759933205848,3.2078,4509.2,4508.5,1.3083]
[1759933206040,3.2078,4509.2,4509.1,0.9167]
[1759933206352,3.13411028,4509.2,4509.1,0.9167]
[1759933206546,0.39909,4508.9,4508.6,0.9167]
[1759933206848,0.39906,4509.2,4509.1,0.00250823]
[1759933207050,6.04850178,4509.6,4509.1,0.00250823]
[1759933207051,0.39902,4509.6,4509.1,0.00250823]
[1759933207246,2.87539999,4509.2,4509.1,0.91920823]
[1759933207446,3.2078,4509.2,4509.1,0.00250823]
[1759933207849,6.08319999,4509.2,4509.1,0.00250823]
[1759933208245,11.30919999,4509.2,4509.1,0.00250823]
[1759933209754,11.30919999,4509.2,4508.0,3.99856]
[1759933209755,0.3991,4508.9,4508.0,3.99856]
[1759933209954,0.226,4508.8,4508.3,0.39914]
[1759933210151,0.226,4508.8,4508.0,3.5994]
[1759933210152,2.87735779,4508.8,4508.7,0.9643]
[1759933210350,3.2078,4509.2,4509.1,1.36337]
[1759933210647,3.2078,4509.2,4509.1,1.36556616]
[1759933211442,3.6068,4509.9,4509.6,0.9643]
[1759933211647,0.4620731,4509.8,4509.6,0.39902]
[1759933211850,3.11465261,4509.8,4509.7,0.9643]
[1759933212050,3.2078,4510.4,4510.0,0.3702]
[1759933212350,3.2078,4510.4,4510.3,0.9643]
[1759933212556,3.67007938,4510.4,4510.3,0.9643]
[1759933212752,6.60038412,4510.4,4510.3,0.9643]
[1759933213955,0.39897,4510.2,4510.1,0.9643]
[1759933214248,3.56684461,4510.2,4510.1,0.9643]
[1759933215053,0.39899,4510.0,4509.6,0.9643]
[1759933215252,3.89607938,4509.9,4509.1,0.00219616]
[1759933215447,3.2078,4509.2,4509.1,0.00219616]
[1759933215647,3.89607938,4509.2,4509.1,0.00219616]
[1759933215848,6.79534299,4509.2,4509.1,0.00219616]
[1759933216151,6.79534299,4509.2,4508.3,0.9643]
[1759933216152,0.39913,4508.5,4508.3,0.9643]
[1759933216453,3.51799495,4508.4,4508.0,0.3702]
[1759933216657,1.08741938,4508.3,4508.1,0.9643]
[1759933216852,0.39917,4508.0,4507.5,0.3702]
[1759933217055,0.68827938,4507.9,4507.5,0.37277948]
[1759933217252,0.46227938,4507.8,4507.6,0.9643]
[1759933217553,3.09586612,4507.7,4507.6,0.9643]
[1759933217757,3.95900405,4507.7,4507.5,0.37277948]
[1759933217958,0.46227938,4507.6,4507.5,0.37277948]
[1759933218356,3.30660189,4507.6,4507.5,1.33707948]
[1759933218552,3.30660189,4507.6,4507.5,0.00257948]
[1759933218758,3.30660189,4507.6,4506.9,0.9643]
[1759933218759,0.39923,4507.3,4506.6,0.39928]
[1759933219048,3.59245917,4507.2,4507.0,0.3702]
[1759933219250,0.46227938,4507.1,4507.0,1.3345]
[1759933219457,0.68827938,4507.1,4507.0,4.5423]
[1759933219656,3.59245917,4507.1,4507.0,4.54491188]
[1759933220563,3.59245917,4507.1,4507.0,0.00261188]
[1759933222065,3.36645917,4507.1,4507.0,1.73636188]
[1759933222560,3.36645917,4507.1,4507.0,1.33711188]
[1759933222765,3.59245917,4507.1,4507.0,1.33711188]
[1759933224164,3.36645917,4507.1,4507.0,4.54491188]
[1759933224558,3.59245917,4507.1,4507.0,4.54491188]
[1759933225968,3.99170917,4507.1,4507.0,0.00261188]
[1759933226769,7.20085373,4507.1,4507.0,0.00261188]
[1759933226958,0.39929,4506.6,4506.4,0.9643]
[1759933227158,0.68962394,4506.5,4506.4,0.9643]
[1759933227355,0.39933,4506.2,4506.0,0.3702]
[1759933227566,0.39933,4506.2,4506.1,0.9643]
[1759933227762,0.226,4506.2,4506.1,0.9643]
[1759933227965,3.16844064,4506.2,4506.1,1.36584372]
[1759933228155,3.60703,4507.4,4506.8,0.39927]
[1759933228355,0.68929839,4507.3,4506.5,0.3702]
[1759933228555,0.39927,4506.9,4506.5,1.3345]
[1759933228761,3.1071365,4507.3,4506.1,0.00221372]
[1759933228762,0.226,4506.8,4506.1,0.00221372]
[1759933228963,0.226,4506.7,4506.1,0.00221372]
[1759933229264,0.3993,4506.5,4506.2,0.9643]
[1759933229466,2.87923134,4506.6,4506.1,0.00221372]
[1759933229467,0.39933,4506.2,4506.1,0.00221372]
[1759933229768,3.50456134,4506.2,4506.1,0.00221372]
[1759933230970,3.10523134,4506.2,4506.1,0.00221372]
[1759933231262,3.10523134,4506.2,4506.1,0.96651372]
[1759933232069,3.10523134,4506.2,4506.1,0.00221372]
[1759933233964,2.87923134,4506.2,4506.1,0.96651372]
[1759933234172,3.10523134,4506.2,4506.1,0.96651372]
[1759933234466,0.226,4506.2,4506.1,0.00221372]
[1759933234666,3.0719677,4506.2,4506.1,0.00221372]
[1759933235960,3.0719677,4506.2,4506.1,1.372e-05]
[1759933236160,3.0719677,4506.2,4505.4,0.9643]
[1759933236360,3.0719677,4506.2,4505.6,0.9643]
[1759933236361,3.4712977,4506.2,4505.6,0.9643]
[1759933236662,0.226,4506.1,4505.6,0.9643]
[1759933237058,2.9393954,4506.0,4505.8,0.39936]
[1759933237259,2.9393954,4506.0,4505.9,0.9643]
[1759933237671,0.226,4506.0,4505.9,0.9643]
[1759933238172,3.07457486,4506.0,4505.9,0.9643]
[1759933238563,2.84857486,4506.0,4505.9,0.9643]
[1759933239570,2.84857486,4506.0,4505.7,0.9584]
[1759933239872,2.84857486,4506.0,4505.9,0.9584]
[1759933240272,3.07457486,4506.0,4505.9,0.9584]
[1759933240670,4.44226172,4507.3,4506.3,0.9584]
[1759933240969,0.226,4507.2,4506.6,1.35769]
[1759933241172,3.06953906,4507.2,4506.6,1.35769]
[1759933241366,3.06953906,4507.2,4506.6,0.39929]
[1759933241367,0.39926,4507.0,4506.6,0.39929]
[1759933241667,3.06953906,4507.2,4506.5,0.3736]
[1759933241668,3.52945227,4506.9,4506.5,0.3736]
[1759933241873,3.52945227,4506.9,4506.1,1.32413]
[1759933241874,0.39928,4506.7,4506.1,1.32413]
[1759933242077,0.226,4506.6,4506.5,0.3758]
[1759933242274,3.05804981,4506.6,4506.5,0.3758]
[1759933242469,0.226,4506.6,4506.5,1.3006]
[1759933242669,0.226,4506.6,4506.0,0.3736]
[1759933242872,0.39932,4506.3,4506.0,0.3736]
[1759933243074,0.226,4506.2,4506.1,0.9248]
[1759933243277,3.05731565,4506.2,4506.1,0.9248]
[1759933243572,3.2078,4507.3,4507.1,1.32404]
[1759933243767,3.2078,4507.3,4507.2,0.9248]
[1759933243968,3.4338,4507.3,4507.2,0.9248]
[1759933244164,6.26520085,4507.3,4507.2,0.9248]
[1759933244778,2.83140085,4507.3,4507.2,0.9248]
[1759933245081,0.226,4507.3,4507.2,0.9248]
[1759933245572,2.86179887,4507.3,4507.2,5.9248]
[1759933245869,0.00165855,4507.7,4507.0,1.3006]
[1759933246076,7.53006059,4507.6,4507.0,0.3758]
[1759933246270,0.226,4507.6,4507.5,1.3006]
[1759933246669,3.58258495,4507.6,4507.5,0.3758]
[1759933246869,0.99803,4507.5,4506.6,3.2078]
[1759933247072,0.39928,4506.8,4506.3,0.9248]
[1759933247280,0.69164794,4506.7,4506.1,0.9248]
[1759933247476,0.46564794,4506.6,4506.1,0.9248]
[1759933247680,0.226,4506.5,4506.1,0.9248]
[1759933247879,3.08928461,4506.5,4506.1,0.9248]
[1759933248180,3.08928461,4506.5,4506.1,0.39933]
[1759933248382,0.46598232,4506.4,4506.0,0.3736]
[1759933248575,2.86328461,4506.5,4506.2,0.9248]
[1759933248775,2.86328461,4506.5,4506.0,0.3736]
[1759933248776,0.226,4506.7,4506.5,0.3758]
[1759933248976,0.226,4506.7,4506.6,0.9248]
[1759933249174,2.89769196,4507.3,4506.6,0.9248]
[1759933249374,3.12369196,4507.4,4507.1,0.9248]
[1759933249375,0.46593825,4507.2,4507.1,0.9248]
[1759933249678,0.226,4507.4,4507.3,0.9248]
[1759933250080,3.2078,4508.5,4507.6,0.9248]
[1759933250283,0.226,4507.9,4507.6,4.1326]
[1759933250978,0.46737563,4507.7,4507.6,0.9248]
[1759933251278,3.38497093,4507.7,4507.6,0.9248]
[1759933252385,3.38497093,4507.7,4507.6,4.1326]
[1759933252681,2.91925385,4507.7,4507.6,4.1326]
[1759933253575,2.91925385,4507.7,4507.6,0.9248]
[1759933254686,2.91925385,4507.7,4507.5,0.3758]
[1759933254881,0.226,4507.6,4507.5,0.3758]
[1759933255084,0.69137824,4507.6,4507.1,4.1326]
[1759933255285,0.46537824,4507.5,4507.2,0.9248]
[1759933255681,3.16015423,4507.4,4507.2,0.9248]
[1759933255884,3.16015423,4507.4,4507.1,3.2078]
[1759933256085,0.46539032,4507.3,4507.0,0.3758]
[1759933256281,1.09063032,4507.2,4507.0,0.3758]
[1759933256485,0.46539032,4507.1,4506.1,3.2078]
[1759933256783,0.3993,4506.5,4506.0,0.3736]
[1759933257091,0.69139032,4506.4,4506.0,0.3736]
[1759933257294,0.46539032,4506.3,4506.0,1.2984]
[1759933257493,0.46539032,4506.3,4505.6,0.00181497]
[1759933257793,2.88280486,4506.2,4505.9,3.2078]
[1759933257998,0.226,4506.1,4505.9,4.1326]
[1759933258301,0.69148531,4506.1,4505.9,4.1326]
[1759933258493,2.83973633,4506.0,4505.9,0.9248]
[1759933258691,2.83973633,4506.0,4505.9,4.1326]
[1759933258997,0.226,4506.1,4506.0,1.69994]
[1759933259498,2.83783166,4507.1,4507.0,0.3758]
[1759933259696,1.09063186,4507.1,4506.6,0.9248]
[1759933259891,2.83783166,4506.9,4506.6,0.9248]
[1759933260193,0.226,4506.8,4506.6,0.9248]
[1759933260394,3.10815752,4506.8,4506.6,0.9248]
[1759933260788,3.10815752,4506.8,4506.5,0.3758]
[1759933260789,0.226,4506.8,4506.5,0.3758]
[1759933260994,2.88215752,4506.7,4506.6,0.9248]
[1759933261291,2.88215752,4506.7,4506.5,1.3006]
[1759933261498,2.88215752,4506.7,4506.6,0.9248]
[1759933262088,2.88215752,4506.7,4506.0,0.3758]
[1759933262089,0.39929,4506.6,4506.0,0.3758]
[1759933262294,4.84158172,4506.3,4505.8,3.2078]
[1759933262490,0.46550962,4506.5,4506.1,0.9248]
[1759933262491,0.226,4506.2,4506.1,0.9248]
[1759933262690,0.226,4506.2,4506.0,0.77514]
[1759933262691,0.226,4506.9,4506.5,0.3758]
[1759933262892,3.2078,4507.9,4507.6,0.9248]
[1759933263198,0.226,4508.2,4507.6,0.9248]
[1759933263398,0.226,4508.2,4507.6,1.324]
[1759933263897,0.226,4508.2,4507.6,0.9248]
[1759933265795,0.226,4508.2,4507.6,1.324]
[1759933266497,2.87564983,4507.7,4507.6,0.9248]
[1759933266705,3.50084983,4507.7,4507.4,3.2078]
[1759933266896,0.39921,4507.6,4507.4,0.9248]
[1759933267300,3.80348855,4507.5,4507.0,0.3758]
[1759933267499,2.93895877,4507.5,4507.0,0.3758]
[1759933267699,0.39923,4507.3,4507.0,1.3006]
[1759933267898,0.69132837,4507.2,4506.9,3.2078]
[1759933268094,0.46532837,4507.1,4506.2,3.2078]
[1759933268300,0.46532837,4507.1,4507.0,1.3006]
[1759933268600,3.39071508,4507.1,4507.0,1.3006]